fUSD/lending_fUSD_20240101
["ID","MTS","AMOUNT","RATE_DAILY","PERIOD"]
[309763120,1704100255577,-500.0,0.00036712,2]
[309763121,1704100255587,-500.0,0.00036712,2]
[309763122,1704100255596,-500.0,0.00036712,2]
[309763123,1704100255606,-500.0,0.00036712,2]
[309763124,1704100255616,-500.0,0.00036712,2]
[309763125,1704100255626,-500.0,0.00036712,2]
[309763126,1704100255636,-756.84,0.00036712,2]
[309763127,1704100255646,-189.15,0.00036712,2]
[309763128,1704100255655,-500.0,0.00036712,2]
[309763129,1704100255664,-500.0,0.00036712,2]
[309763130,1704100255674,-500.0,0.00036712,2]
[309763131,1704100255685,-500.0,0.00036712,2]
[309763132,1704100255694,-500.0,0.00036712,2]
[309763133,1704100255704,-500.0,0.00036712,2]
[309763134,1704100255713,-211.66503606,0.00036712,2]
[309763135,1704100255723,-758.36,0.00036712,2]
[309763136,1704100255732,-153.4,0.00036712,2]
[309763137,1704100255742,-186.9035364,0.00036712,2]
[309763138,1704100255751,-1756.71,0.00036712,2]
[309763139,1704100255762,-7016.98,0.00036712,5]
[309763140,1704100255771,-4771.45,0.00036712,5]
[309763141,1704100255781,-500.0,0.00036712,2]
[309763142,1704100255791,-500.0,0.00036712,2]
[309763143,1704100255800,-228.25,0.00036712,2]
[309763144,1704100255810,-1133.53,0.00036712,2]
[309763145,1704100255819,-500.0,0.00036712,2]
[309763146,1704100255829,-500.0,0.00036712,2]
[309763147,1704100255839,-500.0,0.00036712,2]
[309763148,1704100255849,-732.5,0.00036712,2]
[309763149,1704100255859,-171.68,0.00036712,2]
[309763150,1704100255868,-500.0,0.00036712,2]
[309763151,1704100255877,-507.63,0.00036712,2]
[309763152,1704100255886,-500.0,0.00036712,2]
[309763153,1704100255896,-500.0,0.00036712,2]
[309763154,1704100255905,-400.0,0.00036714,5]
[309763155,1704100255915,-151.77777,0.00036798,2]
[309763156,1704100255924,-211.86,0.00036822,2]
[309763157,1704100255934,-347.58,0.00036851,2]
[309763158,1704100255944,-150.01,0.00036854,2]
[309763159,1704100255953,-2508.31280788,0.00036854,2]
[309763160,1704100255963,-664.91331605,0.00036855,4]
[309763161,1704100255972,-6993.02630333,0.00036855,5]
[309763162,1704100255982,-11202.59106076,0.00036873,2]
[309763163,1704100255991,-152.14,0.00036888,2]
[309763164,1704100256000,-151.77777,0.00036898,4]
[309763165,1704100256010,-1510.28757343,0.000369,2]
[309763166,1704100256019,-2042.45994234,0.00036975,5]
[309763167,1704100256029,-500.0,0.00036986,2]
[309763168,1704100256039,-500.0,0.00036986,2]
[309763169,1704100256049,-500.0,0.00036986,2]
[309763170,1704100256059,-500.0,0.00036986,2]
[309763171,1704100256069,-500.0,0.00036986,2]
[309763172,1704100256079,-500.0,0.00036986,2]
[309763173,1704100256088,-266.2,0.00036986,2]
[309763174,1704100256098,-500.0,0.00036986,2]
[309763175,1704100256108,-411.55,0.00036986,2]
[309763176,1704100256117,-500.0,0.00036986,2]
[309763177,1704100256127,-500.0,0.00036986,2]
[309763178,1704100256137,-500.0,0.00036986,2]
[309763179,1704100256146,-500.0,0.00036986,2]
[309763180,1704100256155,-500.0,0.00036986,2]
[309763181,1704100256165,-500.0,0.00036986,2]
[309763182,1704100256175,-264.85925504,0.00036986,2]
[309763183,1704100256184,-500.0,0.00036986,2]
[309763184,1704100256194,-500.0,0.00036986,2]
[309763185,1704100256203,-500.0,0.00036986,2]
[309763186,1704100256213,-547.35,0.00036986,2]
[309763187,1704100256222,-500.0,0.00036986,2]
[309763188,1704100256232,-500.0,0.00036986,2]
[309763189,1704100256241,-485.3,0.00036986,2]
[309763190,1704100256251,-464.83977971,0.00036986,2]
[309763191,1704100256260,-500.0,0.00036986,2]
[309763192,1704100256270,-534.07417732,0.00036986,2]
[309763193,1704100256280,-500.0,0.00036986,2]
[309763194,1704100256289,-500.0,0.00036986,2]
[309763195,1704100256299,-500.0,0.00036986,2]
[309763196,1704100256308,-594.56,0.00036986,2]
[309763197,1704100256317,-500.0,0.00036986,2]
[309763198,1704100256326,-500.0,0.00036986,2]
[309763199,1704100256336,-500.0,0.00036986,2]
[309763200,1704100256345,-500.0,0.00036986,2]
[309763201,1704100256354,-385.65,0.00036986,2]
[309763202,1704100256363,-500.0,0.00036986,2]
[309763203,1704100256372,-4315.68,0.00036986,2]
[309763204,1704100256382,-535.6,0.00036986,2]
[309763205,1704100256390,-500.0,0.00036986,2]
[309763206,1704100256399,-500.0,0.00036986,2]
[309763207,1704100256409,-965.94,0.00036986,2]
[309763208,1704100256418,-606.16,0.00036986,2]
[309763209,1704100256427,-500.0,0.00036986,2]
[309763210,1704100256437,-500.0,0.00036986,2]
[309763211,1704100256446,-500.0,0.00036986,2]
[309763212,1704100256456,-500.0,0.00036986,2]
[309763213,1704100256466,-500.0,0.00036986,2]
[309763214,1704100256475,-500.0,0.00036986,2]
[309763215,1704100256485,-500.0,0.00036986,2]
[309763216,1704100256494,-500.0,0.00036986,2]
[309763217,1704100256504,-500.0,0.00036986,2]
[309763218,1704100256513,-373.43310963,0.00036986,2]
[309763219,1704100256523,-500.0,0.00036986,2]
[309763220,1704100256532,-617.2,0.00036986,2]
[309763221,1704100256543,-500.0,0.00036986,2]
[309763222,1704100256553,-500.0,0.00036986,2]
[309763223,1704100256563,-866.17,0.00036986,2]
[309763224,1704100256573,-500.0,0.00036986,2]
[309763225,1704100256583,-500.0,0.00036986,2]
[309763226,1704100256592,-605.25,0.00036986,2]
[309763227,1704100256602,-500.0,0.00036986,2]
[309763228,1704100256612,-500.0,0.00036986,2]
[309763229,1704100256622,-500.0,0.00036986,2]
[309763230,1704100256632,-756.84,0.00036986,2]
[309763231,1704100256642,-500.0,0.00036986,2]
[309763232,1704100256652,-500.0,0.00036986,2]
[309763233,1704100256662,-500.0,0.00036986,2]
[309763234,1704100256672,-500.0,0.00036986,2]
[309763235,1704100256682,-500.0,0.00036986,2]
[309763236,1704100256692,-500.0,0.00036986,2]
[309763237,1704100256705,-758.36,0.00036986,2]
[309763238,1704100256715,-1756.71,0.00036986,2]
[309763239,1704100256725,-7016.98,0.00036986,5]
[309763240,1704100256735,-4771.45,0.00036986,5]
[309763241,1704100256745,-500.0,0.00036986,2]
[309763242,1704100256756,-500.0,0.00036986,2]
[309763243,1704100256766,-1133.53,0.00036986,2]
[309763244,1704100256775,-500.0,0.00036986,2]
[309763245,1704100256786,-500.0,0.00036986,2]
[309763246,1704100256796,-500.0,0.00036986,2]
[309763247,1704100256806,-732.5,0.00036986,2]
[309763248,1704100256817,-500.0,0.00036986,2]
[309763249,1704100256827,-507.63,0.00036986,2]
[309763250,1704100256837,-500.0,0.00036986,2]
[309763251,1704100256847,-500.0,0.00036986,2]
[309763252,1704100256858,-151.77777,0.00036998,2]
[309763253,1704100256867,-1062.25,0.00037,2]
[309763254,1704100256877,-500.0,0.00037,5]
[309763255,1704100256887,-211.86,0.00037006,2]
[309763256,1704100256896,-394.12565289,0.00037095,2]
[309763257,1704100256906,-151.77777,0.00037098,4]
[309763258,1704100256917,-1000.0,0.00037117,2]
[309763259,1704100256927,-209.0,0.0003713,2]
[309763260,1704100256937,-159.42,0.00037149,2]
[309763261,1704100256946,-159.86,0.00037153,2]
[309763262,1704100256957,-500.0,0.00037156,2]
[309763263,1704100256966,-500.0,0.00037156,2]
[309763264,1704100256976,-252.1207,0.00037156,2]
[309763265,1704100256985,-211.86,0.0003719,2]
[309763266,1704100256995,-151.77777,0.00037198,4]
[309763267,1704100257005,-159.86,0.00037243,2]
[309763268,1704100257015,-634.02325296,0.0003726,2]
[309763269,1704100257025,-500.0,0.0003726,2]
[309763270,1704100257035,-500.0,0.0003726,2]
[309763271,1704100257045,-627.88179184,0.0003726,2]
[309763272,1704100257055,-377.5,0.0003726,2]
[309763273,1704100257065,-500.0,0.0003726,2]
[309763274,1704100257075,-500.0,0.0003726,2]
[309763275,1704100257085,-461.25,0.0003726,2]
[309763276,1704100257095,-500.0,0.0003726,2]
[309763277,1704100257105,-500.0,0.0003726,2]
[309763278,1704100257115,-500.0,0.0003726,2]
[309763279,1704100257125,-500.0,0.0003726,2]
[309763280,1704100257134,-500.0,0.0003726,2]
[309763281,1704100257144,-500.0,0.0003726,2]
[309763282,1704100257154,-500.0,0.0003726,2]
[309763283,1704100257164,-500.0,0.0003726,2]
[309763284,1704100257173,-500.0,0.0003726,2]
[309763285,1704100257183,-500.0,0.0003726,2]
[309763286,1704100257193,-500.0,0.0003726,2]
[309763287,1704100257203,-500.0,0.0003726,2]
[309763288,1704100257213,-500.0,0.0003726,2]
[309763289,1704100257224,-500.0,0.0003726,2]
[309763290,1704100257234,-594.56,0.0003726,2]
[309763291,1704100257243,-500.0,0.0003726,2]
[309763292,1704100257253,-500.0,0.0003726,2]
[309763293,1704100257264,-500.0,0.0003726,2]
[309763294,1704100257274,-500.0,0.0003726,2]
[309763295,1704100257284,-500.0,0.0003726,2]
[309763296,1704100257294,-4315.68,0.0003726,2]
[309763297,1704100257304,-500.0,0.0003726,2]
[309763298,1704100257314,-500.0,0.0003726,2]
[309763299,1704100257324,-965.94,0.0003726,2]
[309763300,1704100257334,-606.16,0.0003726,2]
[309763301,1704100257344,-500.0,0.0003726,2]
[309763302,1704100257353,-500.0,0.0003726,2]
[309763303,1704100257364,-500.0,0.0003726,2]
[309763304,1704100257374,-500.0,0.0003726,2]
[309763305,1704100257383,-500.0,0.0003726,2]
[309763306,1704100257393,-500.0,0.0003726,2]
[309763307,1704100257402,-500.0,0.0003726,2]
[309763308,1704100257411,-500.0,0.0003726,2]
[309763309,1704100257421,-500.0,0.0003726,2]
[309763310,1704100257430,-500.0,0.0003726,2]
[309763311,1704100257440,-500.0,0.0003726,2]
[309763312,1704100257450,-500.0,0.0003726,2]
[309763313,1704100257460,-866.17,0.0003726,2]
[309763314,1704100257469,-500.0,0.0003726,2]
[309763315,1704100257479,-500.0,0.0003726,2]
[309763316,1704100257489,-500.0,0.0003726,2]
[309763317,1704100257499,-500.0,0.0003726,2]
[309763318,1704100257509,-500.0,0.0003726,2]
[309763319,1704100257518,-756.84,0.0003726,2]
[309763320,1704100257528,-500.0,0.0003726,2]
[309763321,1704100257537,-500.0,0.0003726,2]
[309763322,1704100257547,-320.35879794,0.0003726,2]
[309763323,1704100257557,-500.0,0.0003726,2]
[309763324,1704100257567,-500.0,0.0003726,2]
[309763325,1704100257578,-500.0,0.0003726,2]
[309763326,1704100257587,-758.36,0.0003726,2]
[309763327,1704100257597,-1756.71,0.0003726,2]
[309763328,1704100257607,-4771.45,0.0003726,5]
[309763329,1704100257617,-7016.98,0.0003726,5]
[309763330,1704100257627,-500.0,0.0003726,2]
[309763331,1704100257637,-500.0,0.0003726,2]
[309763332,1704100257646,-1133.53,0.0003726,2]
[309763333,1704100257655,-500.0,0.0003726,2]
[309763334,1704100257665,-500.0,0.0003726,2]
[309763335,1704100257675,-220.25,0.0003726,2]
[309763336,1704100257684,-732.5,0.0003726,2]
[309763337,1704100257694,-500.0,0.0003726,2]
[309763338,1704100257704,-507.63,0.0003726,2]
[309763339,1704100257713,-500.0,0.0003726,2]
[309763340,1704100257723,-500.0,0.0003726,2]
[309763341,1704100257734,-151.77777,0.00037298,4]
[309763342,1704100257744,-50000.0,0.00037304,15]
[309763343,1704100257758,-50000.0,0.00037304,15]
[309763344,1704100257768,-594.04,0.00037333,2]
[309763345,1704100257778,-1000.0,0.00037373,10]
[309763346,1704100257912,-1000.0,0.00037373,10]
[309763347,1704100257922,-1000.0,0.00037373,10]
[309763348,1704100257931,-204.20127383,0.00037373,9]
[309763349,1704100257941,-226.55390962,0.00037373,9]
[309763350,1704100257951,-1000.0,0.00037373,10]
[309763351,1704100257960,-1000.0,0.00037373,10]
[309763352,1704100257970,-4047.34230761,0.00037373,9]
[309763353,1704100257979,-415.07217965,0.00037373,9]
[309763354,1704100257988,-207.53608982,0.00037373,9]
[309763355,1704100257998,-185.45118209,0.00037373,9]
[309763356,1704100258007,-1000.0,0.00037373,10]
[309763357,1704100258017,-167.39411549,0.00037373,9]
[309763358,1704100258027,-324.74718581,0.00037373,9]
[309763359,1704100258035,-1000.0,0.00037373,10]
[309763360,1704100258045,-211.86,0.00037374,2]
[309763361,1704100258054,-151.77777,0.00037398,4]
[309763362,1704100258064,-3363.10255082,0.00037405,15]
[309763363,1704100258073,-13114.2358017,0.00037446,2]
[309763364,1704100258083,-151.77777,0.00037498,4]
[309763365,1704100258093,-1000.0,0.000375,8]
[309763366,1704100258102,-1000.0,0.000375,8]
[309763367,1704100258113,-1289.0,0.000375,8]
[309763368,1704100258122,-209.0,0.000375,120]
[309763369,1704100258132,-500.0,0.000375,5]
[309763370,1704100258142,-150.0,0.00037521,7]
[309763371,1704100258152,-500.0,0.00037534,2]
[309763372,1704100258161,-500.0,0.00037534,2]
[309763373,1704100258171,-158.5,0.00037534,2]
[309763374,1704100258180,-500.0,0.00037534,2]
[309763375,1704100258190,-500.0,0.00037534,2]
[309763376,1704100258199,-479.4,0.00037534,2]
[309763377,1704100258209,-500.0,0.00037534,2]
[309763378,1704100258219,-500.0,0.00037534,2]
[309763379,1704100258228,-500.0,0.00037534,2]
[309763380,1704100258238,-265.9,0.00037534,2]
[309763381,1704100258247,-151.5374001,0.00037534,2]
[309763382,1704100258257,-478.67,0.00037534,2]
[309763383,1704100258266,-500.0,0.00037534,2]
[309763384,1704100258275,-500.0,0.00037534,2]
[309763385,1704100258285,-150.25,0.00037534,2]
[309763386,1704100258294,-500.0,0.00037534,2]
[309763387,1704100258304,-500.0,0.00037534,2]
[309763388,1704100258313,-534.25,0.00037534,2]
[309763389,1704100258323,-594.56,0.00037534,2]
[309763390,1704100258332,-500.0,0.00037534,2]
[309763391,1704100258341,-287.1296259,0.00037534,2]
[309763392,1704100258350,-500.0,0.00037534,2]
[309763393,1704100258360,-500.0,0.00037534,2]
[309763394,1704100258369,-500.0,0.00037534,2]
[309763395,1704100258378,-4315.68,0.00037534,2]
[309763396,1704100258387,-500.0,0.00037534,2]
[309763397,1704100258396,-495.4436675,0.00037534,2]
[309763398,1704100258405,-965.94,0.00037534,2]
[309763399,1704100258415,-606.16,0.00037534,2]
[309763400,1704100258425,-500.0,0.00037534,2]
[309763401,1704100258434,-500.0,0.00037534,2]
[309763402,1704100258443,-500.0,0.00037534,2]
[309763403,1704100258453,-500.0,0.00037534,2]
[309763404,1704100258462,-500.0,0.00037534,2]
[309763405,1704100258471,-500.0,0.00037534,2]
[309763406,1704100258480,-472.85402995,0.00037534,2]
[309763407,1704100258490,-500.0,0.00037534,2]
[309763408,1704100258499,-500.0,0.00037534,2]
[309763409,1704100258509,-500.0,0.00037534,2]
[309763410,1704100258518,-500.0,0.00037534,2]
[309763411,1704100258527,-500.0,0.00037534,2]
[309763412,1704100258537,-866.17,0.00037534,2]
[309763413,1704100258547,-500.0,0.00037534,2]
[309763414,1704100258556,-500.0,0.00037534,2]
[309763415,1704100258566,-500.0,0.00037534,2]
[309763416,1704100258575,-500.0,0.00037534,2]
[309763417,1704100258584,-500.0,0.00037534,2]
[309763418,1704100258594,-756.84,0.00037534,2]
[309763419,1704100258603,-500.0,0.00037534,2]
[309763420,1704100258613,-500.0,0.00037534,2]
[309763421,1704100258623,-500.0,0.00037534,2]
[309763422,1704100258633,-195.75,0.00037534,2]
[309763423,1704100258643,-500.0,0.00037534,2]
[309763424,1704100258653,-758.36,0.00037534,2]
[309763425,1704100258662,-1756.71,0.00037534,2]
[309763426,1704100258672,-4771.45,0.00037534,5]
[309763427,1704100258681,-7016.98,0.00037534,5]
[309763428,1704100258690,-500.0,0.00037534,2]
[309763429,1704100258702,-500.0,0.00037534,2]
[309763430,1704100258713,-1133.53,0.00037534,2]
[309763431,1704100258723,-500.0,0.00037534,2]
[309763432,1704100258732,-500.0,0.00037534,2]
[309763433,1704100258741,-732.5,0.00037534,2]
[309763434,1704100258752,-500.0,0.00037534,2]
[309763435,1704100258761,-115.91831402,0.00037534,2]
[309763436,1704100258787,-391.71168598,0.00037534,2]
[309763437,1704100258798,-500.0,0.00037534,2]
[309763438,1704100258807,-108711.30791864,0.00037553,15]
[309763439,1704100258819,-5455.30005252,0.00037553,15]
[309763440,1704100258923,-251.1436686,0.00035616,2]
[309763441,1704100259053,-586.13838134,0.000229,2]
[309763442,1704100259063,-248.8563314,0.00035616,2]
[309763443,1704100259072,-500.0,0.0003589,2]
[309763444,1704100259082,-275.77197676,0.00037534,2]
[309763445,1704100259091,-85833.39202884,0.00037553,15]
[309763446,1704100259100,-211.86,0.00037559,2]
[309763447,1704100259110,-1056.2075,0.0003758,2]
[309763448,1704100259120,-151.77777,0.00037598,4]
[309763449,1704100259129,-1000.0,0.000376,8]
[309763450,1704100259138,-159.42,0.00037605,2]
[309763451,1704100259148,-500.0,0.00037606,30]
[309763452,1704100259157,-500.0,0.00037606,30]
[309763453,1704100259167,-500.0,0.00037606,30]
[309763454,1704100259176,-500.0,0.00037606,30]
[309763455,1704100259186,-500.0,0.00037606,30]
[309763456,1704100259195,-500.0,0.00037606,30]
[309763457,1704100259205,-460.0,0.00037606,30]
[309763458,1704100259214,-200.0,0.00037667,2]
[309763459,1704100259223,-212.0,0.0003768,2]
[309763460,1704100259232,-209.0,0.0003768,2]
[309763461,1704100259241,-151.77777,0.00037698,4]
[309763462,1704100259251,-31282.41605173,0.00037698,2]
[309763463,1704100259260,-61395.6571226,0.000377,2]
[309763464,1704100259273,-509.8321641,0.000377,2]
[309763465,1704100259284,-859.94127505,0.000377,2]
[309763466,1704100259295,-735.93859398,0.000377,2]
[309763467,1704100259445,-297.79943314,0.00028315,2]
[309763468,1704100259461,-485.99041442,0.00028315,2]
[309763469,1704100259487,-2685.69298829,0.00028315,2]
[309763470,1704100259497,-500.0,0.00035616,2]
[309763471,1704100259507,-500.0,0.0003589,2]
[309763472,1704100259518,-500.0,0.00036164,2]
[309763473,1704100259527,-500.0,0.00036438,2]
[309763474,1704100259536,-5129.06780712,0.000377,2]
[309763475,1704100259597,-500.0,0.00036712,2]
[309763476,1704100259605,-72.27499999,0.00036986,2]
[309763477,1704100259617,-427.72500001,0.00036986,2]
[309763478,1704100259626,-500.0,0.0003726,2]
[309763479,1704100259636,-500.0,0.00037534,2]
[309763480,1704100259645,-921.21620939,0.000377,2]
[309763481,1704100259676,-586.13838134,0.00029208,2]
[309763482,1704100259685,-980.76968932,0.000377,2]
[309763486,1704100370923,1088.09,0.00039201,30]
[309763617,1704101432414,-396.39965987,0.00028314,2]
[309763618,1704101432426,-375.24803651,0.00028314,2]
[309763619,1704101432435,-3469.48283585,0.00029668,2]
[309763620,1704101432444,-4681.46912764,0.000304,2]
[309763621,1704101432456,-1138.31996974,0.000304,2]
[309763622,1704101432468,-1695.00217771,0.000304,2]
[309763623,1704101432483,-1504.25749229,0.000304,2]
[309763624,1704101432496,-259.34639885,0.000304,2]
[309763625,1704101432632,-4710.27136756,0.000304,2]
[309763667,1704101438510,-488.48051063,0.000304,2]
[309763668,1704101438565,-10384.85295558,0.000304,2]
[309763669,1704101438575,-3469.48283585,0.00031022,2]
[309763670,1704101438584,-788.91942571,0.00032375,2]
[309763671,1704101438594,-3469.48283585,0.00032375,4]
[309763672,1704101438603,-460.10322911,0.00032548,4]
[309763673,1704101438612,-206.0,0.00032677,2]
[309763674,1704101438622,-2042.0,0.0003337,5]
[309763675,1704101438631,-185.87,0.00033488,2]
[309763676,1704101438640,-420.02,0.00033488,2]
[309763677,1704101438650,-2484.98,0.00033488,2]
[309763678,1704101438659,-185.01,0.00033523,2]
[309763679,1704101438668,-1122.65843895,0.00033719,2]
[309763680,1704101438678,-3469.48283585,0.00033729,5]
[309763681,1704101438687,-159.42,0.00033823,2]
[309763682,1704101438696,-159.42,0.00033823,2]
[309763683,1704101438705,-1000.0,0.00034603,4]
[309763684,1704101438714,-185.87,0.00034604,2]
[309763685,1704101438723,-177.94,0.00034887,2]
[309763686,1704101438732,-918.8,0.00034906,2]
[309763687,1704101438742,-3469.48283585,0.00035083,7]
[309763688,1704101438750,-159.42,0.00035096,2]
[309763689,1704101438760,-2042.0,0.00035127,5]
[309763690,1704101438769,-154.01,0.00035192,2]
[309763691,1704101438778,-818.99,0.00035468,2]
[309763692,1704101438787,-152.6,0.00035487,2]
[309763693,1704101438796,-158.89,0.00035582,2]
[309763694,1704101438805,-203.0,0.00035587,2]
[309763695,1704101438814,-152.14,0.00035616,2]
[309763696,1704101438823,-383.09950652,0.00035714,4]
[309763697,1704101438833,-185.87,0.00035721,2]
[309763698,1704101438843,-185.01,0.00035787,2]
[309763699,1704101438853,-995.4904202,0.00036003,2]
[309763700,1704101438864,-158.89,0.0003609,2]
[309763701,1704101438874,-151.77777,0.00036098,4]
[309763702,1704101438883,-151.77777,0.00036198,2]
[309763703,1704101438893,-151.77777,0.00036298,4]
[309763704,1704101438903,-159.42,0.00036368,2]
[309763705,1704101438913,-151.77777,0.00036398,2]
[309763706,1704101438924,-3469.48283585,0.00036436,9]
[309763707,1704101438935,-151.77777,0.00036498,4]
[309763708,1704101438945,-500.0,0.000365,2]
[309763709,1704101438956,-152.11,0.00036531,2]
[309763710,1704101438966,-151.77777,0.00036598,2]
[309763711,1704101438976,-158.89,0.00036599,2]
[309763712,1704101438986,-151.77777,0.00036698,4]
[309763713,1704101438997,-177.94,0.00036701,2]
[309763714,1704101439007,-402.4132,0.00036794,2]
[309763715,1704101439018,-151.77777,0.00036798,2]
[309763716,1704101439027,-190.228,0.00036799,2]
[309763717,1704101439037,-425.892,0.00036799,2]
[309763718,1704101439046,-185.87,0.00036837,2]
[309763719,1704101439058,-161.3,0.00036848,2]
[309763720,1704101439068,-283.22741865,0.00036875,8]
[309763721,1704101439079,-157.65026118,0.00036875,2]
[309763722,1704101439088,-151.77777,0.00036898,4]
[309763723,1704101439099,-500.0,0.00036899,2]
[309763724,1704101439109,-500.0,0.00036899,2]
[309763725,1704101439118,-599.17,0.00036899,2]
[309763726,1704101439128,-500.0,0.00036899,2]
[309763727,1704101439137,-500.0,0.00036899,2]
[309763728,1704101439146,-500.0,0.00036899,2]
[309763729,1704101439155,-500.0,0.00036899,2]
[309763730,1704101439165,-5555.11,0.00036899,5]
[309763731,1704101439174,-500.0,0.00036899,2]
[309763732,1704101439183,-946.67,0.00036899,2]
[309763733,1704101439192,-1390.72,0.00036899,2]
[309763734,1704101439202,-500.0,0.00036899,2]
[309763735,1704101439211,-500.0,0.00036899,2]
[309763736,1704101439222,-3416.58,0.00036899,2]
[309763737,1704101439231,-500.0,0.00036899,2]
[309763738,1704101439241,-764.7,0.00036899,2]
[309763739,1704101439251,-500.0,0.00036899,2]
[309763740,1704101439262,-500.0,0.00036899,2]
[309763741,1704101439273,-500.0,0.00036899,2]
[309763742,1704101439282,-500.0,0.00036899,2]
[309763743,1704101439292,-500.0,0.00036899,2]
[309763744,1704101439302,-500.0,0.00036899,2]
[309763745,1704101439311,-150.0,0.000369,2]
[309763746,1704101439320,-282.68756677,0.000369,2]
[309763747,1704101439329,-293079.28997418,0.000369,2]
[309763748,1704101439357,-64553.56282582,0.000369,2]
[309763749,1704101439367,-2042.0,0.00036975,5]
[309763750,1704101439376,-151.77777,0.00036998,2]
[309763751,1704101439386,-500.0,0.00037,5]
[309763752,1704101439395,-151.77777,0.00037098,4]
[309763753,1704101439405,-152.14,0.000371,2]
[309763754,1704101439414,-158.89,0.00037107,2]
[309763755,1704101439423,-500.0,0.00037173,2]
[309763756,1704101439433,-500.0,0.00037173,2]
[309763757,1704101439443,-599.17,0.00037173,2]
[309763758,1704101439453,-500.0,0.00037173,2]
[309763759,1704101439463,-500.0,0.00037173,2]
[309763760,1704101439472,-500.0,0.00037173,2]
[309763761,1704101439482,-500.0,0.00037173,2]
[309763762,1704101439491,-5555.11,0.00037173,5]
[309763763,1704101439500,-500.0,0.00037173,2]
[309763764,1704101439510,-946.67,0.00037173,2]
[309763765,1704101439520,-1390.72,0.00037173,2]
[309763766,1704101439530,-500.0,0.00037173,2]
[309763767,1704101439540,-500.0,0.00037173,2]
[309763768,1704101439551,-3416.58,0.00037173,2]
[309763769,1704101439560,-220.25,0.00037173,2]
[309763770,1704101439571,-764.7,0.00037173,2]
[309763771,1704101439582,-500.0,0.00037173,2]
[309763772,1704101439594,-627.88179184,0.00037173,2]
[309763773,1704101439605,-500.0,0.00037173,2]
[309763774,1704101439614,-500.0,0.00037173,2]
[309763775,1704101439625,-500.0,0.00037173,2]
[309763776,1704101439635,-151.77777,0.00037198,4]
[309763777,1704101439645,-206.0,0.00037231,11]
[309763778,1704101439654,-1000.0,0.00037241,2]
[309763779,1704101439664,-151.77777,0.00037298,4]
[309763780,1704101439674,-212.31393791,0.00037373,9]
[309763781,1704101439685,-3876.09366505,0.00037373,9]
[309763782,1704101439695,-2523.67115381,0.00037373,9]
[309763783,1704101439706,-383.63012186,0.00037373,9]
[309763784,1704101439715,-229.24828351,0.00037373,9]
[309763785,1704101439725,-1000.0,0.00037373,10]
[309763786,1704101439736,-239.51063256,0.00037373,9]
[309763787,1704101439746,-303.55554,0.00037398,4]
[309763788,1704101439758,-326.7726547,0.00037447,2]
[309763789,1704101439768,-500.0,0.00037447,2]
[309763790,1704101439777,-599.17,0.00037447,2]
[309763791,1704101439787,-500.0,0.00037447,2]
[309763792,1704101439797,-500.0,0.00037447,2]
[309763793,1704101439807,-500.0,0.00037447,2]